[Event "December 12 Late 2023"]
[Site "https://www.chess.com"]
[Date "2023.12.12"]
[Round "10"]
[White "Karacsonyi, Gellert"]
[Black "Chylewski, Patryk"]
[Result "1-0"]
[Board "33"]
[TimeControl "180+1"]
[WhiteFideId "764620"]
[BlackFideId "1186191"]
[WhiteElo "2664"]
[BlackElo "2525"]
[WhiteTeam "HUN"]
[BlackTeam "POL"]
[WhiteClock "0:00:09"]
[BlackClock "0:00:00"]

1. e4 {[%clk 0:03:00]}  c5 {[%clk 0:02:52]} 2. Nf3 {[%clk 0:02:59]}  e6 {[%clk 0:02:35]} 3. d4 {[%clk 0:02:58]}  cxd4 {[%clk 0:02:36]} 4. Nxd4 {[%clk 0:02:59]}  a6 {[%clk 0:02:36]} 5. Nc3 {[%clk 0:02:59]}  Qc7 {[%clk 0:02:35]} 6. Bd3 {[%clk 0:02:59]}  Nc6 {[%clk 0:02:32]} 7. Nb3 {[%clk 0:02:57]}  Nf6 {[%clk 0:02:27]} 8. O-O {[%clk 0:02:56]}  Be7 {[%clk 0:02:25]} 9. Qe2 {[%clk 0:02:53]}  d6 {[%clk 0:02:25]} 10. Bd2 {[%clk 0:02:53]}  O-O {[%clk 0:02:24]} 11. f4 {[%clk 0:02:53]}  b5 {[%clk 0:02:22]} 12. Rae1 {[%clk 0:02:52]}  Nd7 {[%clk 0:01:36]} 13. g4 {[%clk 0:02:49]}  Bb7 {[%clk 0:01:20]} 14. Rf3 {[%clk 0:02:44]}  Nc5 {[%clk 0:01:18]} 15. Rh3 {[%clk 0:02:40]}  Nxd3 {[%clk 0:01:14]} 16. cxd3 {[%clk 0:02:39]}  Rac8 {[%clk 0:01:08]} 17. g5 {[%clk 0:02:38]}  g6 {[%clk 0:01:06]} 18. Qg4 {[%clk 0:02:32]}  b4 {[%clk 0:00:55]} 19. Ne2 {[%clk 0:02:29]}  a5 {[%clk 0:00:52]} 20. f5 {[%clk 0:02:18]}  exf5 {[%clk 0:00:46]} 21. Qh4 {[%clk 0:02:06]}  h5 {[%clk 0:00:44]} 22. Ng3 {[%clk 0:02:06]}  Kg7 {[%clk 0:00:15]} 23. Nxf5+ {[%clk 0:01:51]}  gxf5 {[%clk 0:00:14]} 24. exf5 {[%clk 0:01:52]}  Rh8 {[%clk 0:00:08]} 25. f6+ {[%clk 0:01:52]}  Kg8 {[%clk 0:00:08]} 26. g6 {[%clk 0:01:35]}  fxg6 {[%clk 0:00:03]} 27. fxe7 {[%clk 0:01:36]}  Ne5 {[%clk 0:00:03]} 28. Nd4 {[%clk 0:00:48]}  Re8 {[%clk 0:00:02]} 29. Bg5 {[%clk 0:00:39]}  Kh7 {[%clk 0:00:02]} 30. Ne6 {[%clk 0:00:34]}  Qd7 {[%clk 0:00:03]} 31. Nf8+ {[%clk 0:00:25]}  Rhxf8 {[%clk 0:00:03]} 32. exf8=Q {[%clk 0:00:26]}  Rxf8 {[%clk 0:00:03]} 33. d4 {[%clk 0:00:19]}  Qf5 {[%clk 0:00:01]} 34. dxe5 {[%clk 0:00:16]}  Qc2 {[%clk 0:00:02]} 35. Qg3 {[%clk 0:00:10]}  Rf3 {[%clk 0:00:02]} 36. Qxf3 {[%clk 0:00:08]}  Bxf3 {[%clk 0:00:00]} 37. Rxf3 {[%clk 0:00:09]} 1-0

[Event "December 12 Late 2023"]
[Site "https://www.chess.com"]
[Date "2023.12.12"]
[Round "10"]
[White "Piesik, Piotr"]
[Black "Bazilius, Augustinas"]
[Result "1-0"]
[Board "34"]
[TimeControl "180+1"]
[WhiteFideId "1136194"]
[BlackFideId "12832251"]
[WhiteElo "2659"]
[BlackElo "2509"]
[WhiteTeam "CZE"]
[BlackTeam "LTU"]
[WhiteClock "0:01:47"]
[BlackClock "0:00:29"]

1. Nf3 {[%clk 0:03:00]}  Nf6 {[%clk 0:02:59]} 2. g3 {[%clk 0:03:01]}  g6 {[%clk 0:02:59]} 3. Bg2 {[%clk 0:03:01]}  Bg7 {[%clk 0:02:59]} 4. O-O {[%clk 0:03:01]}  O-O {[%clk 0:02:59]} 5. d4 {[%clk 0:03:02]}  d6 {[%clk 0:02:59]} 6. Nbd2 {[%clk 0:03:02]}  Nc6 {[%clk 0:02:58]} 7. e4 {[%clk 0:03:02]}  e5 {[%clk 0:02:56]} 8. dxe5 {[%clk 0:03:03]}  Nxe5 {[%clk 0:02:54]} 9. Nxe5 {[%clk 0:03:03]}  dxe5 {[%clk 0:02:55]} 10. Qe2 {[%clk 0:03:03]}  c6 {[%clk 0:02:54]} 11. a4 {[%clk 0:03:02]}  a6 {[%clk 0:02:53]} 12. a5 {[%clk 0:03:01]}  Qc7 {[%clk 0:02:47]} 13. Nc4 {[%clk 0:03:00]}  Be6 {[%clk 0:02:47]} 14. Be3 {[%clk 0:03:00]}  Nd7 {[%clk 0:02:33]} 15. Rfd1 {[%clk 0:02:56]}  f5 {[%clk 0:02:26]} 16. Rd6 {[%clk 0:02:50]}  Rae8 {[%clk 0:02:09]} 17. Rad1 {[%clk 0:02:48]}  f4 {[%clk 0:02:05]} 18. Bd2 {[%clk 0:02:36]}  f3 {[%clk 0:01:20]} 19. Bxf3 {[%clk 0:02:31]}  Rxf3 {[%clk 0:01:20]} 20. Rxe6 {[%clk 0:02:24]}  Rxg3+ {[%clk 0:01:19]} 21. hxg3 {[%clk 0:02:22]}  Rxe6 {[%clk 0:01:19]} 22. Qg4 {[%clk 0:02:01]}  Rf6 {[%clk 0:00:57]} 23. Bg5 {[%clk 0:02:00]}  Rf7 {[%clk 0:00:54]} 24. Nd6 {[%clk 0:01:54]}  Nf6 {[%clk 0:00:48]} 25. Bxf6 {[%clk 0:01:48]}  Rxf6 {[%clk 0:00:29]} 26. Ne8 {[%clk 0:01:47]} 1-0

[Event "December 12 Late 2023"]
[Site "https://www.chess.com"]
[Date "2023.12.12"]
[Round "10"]
[White "Brodsky, David"]
[Black "yaguigor"]
[Result "1/2-1/2"]
[Board "36"]
[TimeControl "180+1"]
[WhiteFideId "2073250"]
[WhiteElo "2783"]
[BlackElo "2507"]
[WhiteTeam "USA"]
[WhiteClock "0:00:09"]
[BlackClock "0:00:29"]

1. e4 {[%clk 0:03:00]}  c5 {[%clk 0:02:59]} 2. Nf3 {[%clk 0:03:01]}  Nc6 {[%clk 0:02:58]} 3. d4 {[%clk 0:03:01]}  cxd4 {[%clk 0:02:58]} 4. Nxd4 {[%clk 0:03:02]}  Nf6 {[%clk 0:02:58]} 5. Nc3 {[%clk 0:03:02]}  e5 {[%clk 0:02:58]} 6. Ndb5 {[%clk 0:03:02]}  d6 {[%clk 0:02:58]} 7. Bg5 {[%clk 0:03:03]}  a6 {[%clk 0:02:58]} 8. Na3 {[%clk 0:03:04]}  b5 {[%clk 0:02:58]} 9. Nab1 {[%clk 0:03:04]}  Be7 {[%clk 0:02:54]} 10. Bxf6 {[%clk 0:03:05]}  Bxf6 {[%clk 0:02:53]} 11. a4 {[%clk 0:03:05]}  b4 {[%clk 0:02:53]} 12. Nd5 {[%clk 0:03:06]}  Bg5 {[%clk 0:02:48]} 13. Bc4 {[%clk 0:03:06]}  O-O {[%clk 0:02:47]} 14. O-O {[%clk 0:03:06]}  Be6 {[%clk 0:02:46]} 15. Qd3 {[%clk 0:03:06]}  a5 {[%clk 0:02:41]} 16. c3 {[%clk 0:03:06]}  bxc3 {[%clk 0:02:33]} 17. Nbxc3 {[%clk 0:03:05]}  Nd4 {[%clk 0:02:32]} 18. f4 {[%clk 0:02:56]}  Bh6 {[%clk 0:02:21]} 19. f5 {[%clk 0:02:55]}  Bd7 {[%clk 0:02:13]} 20. Ne2 {[%clk 0:02:44]}  Nxe2+ {[%clk 0:02:11]} 21. Qxe2 {[%clk 0:02:45]}  Rb8 {[%clk 0:02:07]} 22. b3 {[%clk 0:02:43]}  Bc6 {[%clk 0:02:02]} 23. f6 {[%clk 0:02:25]}  Bxd5 {[%clk 0:01:58]} 24. fxg7 {[%clk 0:02:22]}  Kxg7 {[%clk 0:01:50]} 25. Bxd5 {[%clk 0:02:21]}  Qb6+ {[%clk 0:01:48]} 26. Kh1 {[%clk 0:02:21]}  Qe3 {[%clk 0:01:45]} 27. Qh5 {[%clk 0:02:14]}  f6 {[%clk 0:01:34]} 28. Rf3 {[%clk 0:02:05]}  Qd2 {[%clk 0:01:20]} 29. Rg3+ {[%clk 0:01:53]}  Kh8 {[%clk 0:01:19]} 30. Rd1 {[%clk 0:01:51]}  Qc2 {[%clk 0:01:18]} 31. h3 {[%clk 0:01:39]}  Bf4 {[%clk 0:01:09]} 32. Rgd3 {[%clk 0:01:37]}  Rbc8 {[%clk 0:01:04]} 33. Be6 {[%clk 0:01:34]}  Rc7 {[%clk 0:01:03]} 34. Rxd6 {[%clk 0:01:28]}  Rg7 {[%clk 0:00:59]} 35. Bg4 {[%clk 0:01:11]}  Qf2 {[%clk 0:00:53]} 36. Rd8 {[%clk 0:00:46]}  Rfg8 {[%clk 0:00:45]} 37. Rxg8+ {[%clk 0:00:31]}  Rxg8 {[%clk 0:00:44]} 38. Qf5 {[%clk 0:00:32]}  Rf8 {[%clk 0:00:37]} 39. Bf3 {[%clk 0:00:08]}  Qg3 {[%clk 0:00:34]} 40. Kg1 {[%clk 0:00:08]}  Be3+ {[%clk 0:00:33]} 41. Kh1 {[%clk 0:00:08]}  Bf4 {[%clk 0:00:33]} 42. Kg1 {[%clk 0:00:08]}  Be3+ {[%clk 0:00:30]} 43. Kh1 {[%clk 0:00:09]}  Bf4 {[%clk 0:00:29]} 1/2-1/2

[Event "December 12 Late 2023"]
[Site "https://www.chess.com"]
[Date "2023.12.12"]
[Round "10"]
[White "Roberson, Peter T"]
[Black "Wu, Derek"]
[Result "1-0"]
[Board "39"]
[TimeControl "180+1"]
[WhiteFideId "412384"]
[BlackFideId "30914558"]
[WhiteElo "2562"]
[BlackElo "2684"]
[WhiteTeam "ENG"]
[BlackTeam "USA"]
[WhiteClock "0:00:08"]
[BlackClock "0:00:10"]

1. Nc3 {[%clk 0:03:00]}  e5 {[%clk 0:02:58]} 2. Nf3 {[%clk 0:03:00]}  Nc6 {[%clk 0:02:57]} 3. d4 {[%clk 0:03:01]}  exd4 {[%clk 0:02:55]} 4. Nxd4 {[%clk 0:03:02]}  Bb4 {[%clk 0:02:53]} 5. Nxc6 {[%clk 0:03:02]}  dxc6 {[%clk 0:02:51]} 6. Qxd8+ {[%clk 0:03:01]}  Kxd8 {[%clk 0:02:52]} 7. Bd2 {[%clk 0:03:01]}  Nf6 {[%clk 0:02:48]} 8. O-O-O {[%clk 0:03:02]}  Ke7 {[%clk 0:02:45]} 9. f3 {[%clk 0:03:01]}  Be6 {[%clk 0:02:41]} 10. e4 {[%clk 0:03:01]}  a5 {[%clk 0:02:40]} 11. a3 {[%clk 0:03:01]}  Bc5 {[%clk 0:02:40]} 12. Na4 {[%clk 0:02:39]}  Bd6 {[%clk 0:02:32]} 13. Be3 {[%clk 0:02:31]}  b6 {[%clk 0:02:30]} 14. Be2 {[%clk 0:02:27]}  h6 {[%clk 0:02:28]} 15. Rd2 {[%clk 0:02:20]}  g5 {[%clk 0:02:26]} 16. g3 {[%clk 0:02:04]}  Nd7 {[%clk 0:02:18]} 17. Rhd1 {[%clk 0:02:01]}  c5 {[%clk 0:02:17]} 18. f4 {[%clk 0:01:54]}  f6 {[%clk 0:02:16]} 19. Nc3 {[%clk 0:01:53]}  Rad8 {[%clk 0:02:04]} 20. Nd5+ {[%clk 0:01:32]}  Kf7 {[%clk 0:01:52]} 21. Bc4 {[%clk 0:01:12]}  Rhe8 {[%clk 0:01:39]} 22. h4 {[%clk 0:01:05]}  g4 {[%clk 0:01:21]} 23. Nxc7 {[%clk 0:00:43]}  Bxc4 {[%clk 0:00:45]} 24. Nxe8 {[%clk 0:00:28]}  Rxe8 {[%clk 0:00:27]} 25. Rxd6 {[%clk 0:00:28]}  Nf8 {[%clk 0:00:25]} 26. Rxb6 {[%clk 0:00:26]}  Rxe4 {[%clk 0:00:24]} 27. Bxc5 {[%clk 0:00:27]}  Ne6 {[%clk 0:00:24]} 28. Bd6 {[%clk 0:00:14]}  a4 {[%clk 0:00:20]} 29. f5 {[%clk 0:00:14]}  Nd4 {[%clk 0:00:21]} 30. Rb7+ {[%clk 0:00:11]}  Ke8 {[%clk 0:00:20]} 31. Bc5 {[%clk 0:00:10]}  Nxf5 {[%clk 0:00:19]} 32. b3 {[%clk 0:00:05]}  Be6 {[%clk 0:00:17]} 33. bxa4 {[%clk 0:00:04]}  Rxa4 {[%clk 0:00:18]} 34. Re1 {[%clk 0:00:03]}  Ra6 {[%clk 0:00:15]} 35. Bb6 {[%clk 0:00:04]}  Kf8 {[%clk 0:00:06]} 36. Rxe6 {[%clk 0:00:03]}  Ng7 {[%clk 0:00:05]} 37. Rxf6+ {[%clk 0:00:03]}  Kg8 {[%clk 0:00:05]} 38. Rg6 {[%clk 0:00:03]}  Kh8 {[%clk 0:00:05]} 39. Rgxg7 {[%clk 0:00:02]}  Rxb6 {[%clk 0:00:05]} 40. Rxb6 {[%clk 0:00:02]}  Kxg7 {[%clk 0:00:05]} 41. a4 {[%clk 0:00:03]}  h5 {[%clk 0:00:06]} 42. a5 {[%clk 0:00:04]}  Kf7 {[%clk 0:00:06]} 43. a6 {[%clk 0:00:05]}  Ke7 {[%clk 0:00:07]} 44. a7 {[%clk 0:00:06]}  Kd7 {[%clk 0:00:08]} 45. a8=Q {[%clk 0:00:06]}  Kc7 {[%clk 0:00:09]} 46. Qa7+ {[%clk 0:00:07]}  Kc8 {[%clk 0:00:10]} 47. Rb8# {[%clk 0:00:08]} 1-0

[Event "December 12 Late 2023"]
[Site "https://www.chess.com"]
[Date "2023.12.12"]
[Round "10"]
[White "Vlassov, Nikolai"]
[Black "Rama, Tejas"]
[Result "1-0"]
[Board "42"]
[TimeControl "180+1"]
[WhiteFideId "4103360"]
[BlackFideId "30907381"]
[WhiteElo "2616"]
[BlackElo "2535"]
[WhiteTeam "FID"]
[BlackTeam "USA"]
[WhiteClock "0:01:19"]
[BlackClock "0:00:01"]

1. e4 {[%clk 0:03:00]}  e5 {[%clk 0:02:34]} 2. Bc4 {[%clk 0:03:00]}  Nf6 {[%clk 0:02:33]} 3. d3 {[%clk 0:03:00]}  Nc6 {[%clk 0:02:29]} 4. Nf3 {[%clk 0:03:00]}  Bc5 {[%clk 0:02:27]} 5. Bg5 {[%clk 0:03:00]}  h6 {[%clk 0:02:24]} 6. Bh4 {[%clk 0:03:00]}  Be7 {[%clk 0:02:22]} 7. Nc3 {[%clk 0:02:55]}  d6 {[%clk 0:02:20]} 8. h3 {[%clk 0:02:54]}  Na5 {[%clk 0:02:15]} 9. Bb5+ {[%clk 0:02:47]}  c6 {[%clk 0:02:15]} 10. Ba4 {[%clk 0:02:46]}  b5 {[%clk 0:02:08]} 11. Bb3 {[%clk 0:02:46]}  O-O {[%clk 0:02:07]} 12. O-O {[%clk 0:02:36]}  Qc7 {[%clk 0:01:42]} 13. Re1 {[%clk 0:02:29]}  Re8 {[%clk 0:01:33]} 14. d4 {[%clk 0:02:28]}  Nxb3 {[%clk 0:01:32]} 15. axb3 {[%clk 0:02:26]}  exd4 {[%clk 0:00:38]} 16. Nxd4 {[%clk 0:02:23]}  b4 {[%clk 0:00:35]} 17. Nb1 {[%clk 0:02:22]}  Nd7 {[%clk 0:00:31]} 18. Bg3 {[%clk 0:02:20]}  Nc5 {[%clk 0:00:22]} 19. Nd2 {[%clk 0:02:18]}  Bf6 {[%clk 0:00:22]} 20. Nc4 {[%clk 0:02:08]}  Nxe4 {[%clk 0:00:18]} 21. Nxd6 {[%clk 0:01:56]}  Nxd6 {[%clk 0:00:07]} 22. Rxe8+ {[%clk 0:01:54]}  Kh7 {[%clk 0:00:07]} 23. Nf5 {[%clk 0:01:27]}  Bxf5 {[%clk 0:00:03]} 24. Rxa8 {[%clk 0:01:24]}  Qb7 {[%clk 0:00:01]} 25. R1xa7 {[%clk 0:01:19]}  Qe7 {[%clk 0:00:01]} 1-0

[Event "December 12 Late 2023"]
[Site "https://www.chess.com"]
[Date "2023.12.12"]
[Round "10"]
[White "Reprintsev, Alexander"]
[Black "Saravana, Krishnan P."]
[Result "1-0"]
[Board "45"]
[TimeControl "180+1"]
[WhiteFideId "14100541"]
[BlackFideId "5018382"]
[WhiteElo "2518"]
[BlackElo "2612"]
[WhiteTeam "UKR"]
[BlackTeam "IND"]
[WhiteClock "0:01:41"]
[BlackClock "0:00:35"]

1. e4 {[%clk 0:03:00]}  c6 {[%clk 0:02:59]} 2. Nf3 {[%clk 0:02:59]}  d5 {[%clk 0:02:59]} 3. e5 {[%clk 0:02:59]}  c5 {[%clk 0:02:57]} 4. Be2 {[%clk 0:02:56]}  Nc6 {[%clk 0:02:57]} 5. O-O {[%clk 0:02:56]}  Bg4 {[%clk 0:02:57]} 6. c4 {[%clk 0:02:54]}  d4 {[%clk 0:02:49]} 7. Nxd4 {[%clk 0:02:54]}  Bxe2 {[%clk 0:02:27]} 8. Nxe2 {[%clk 0:02:53]}  Nxe5 {[%clk 0:02:27]} 9. d4 {[%clk 0:02:49]}  cxd4 {[%clk 0:02:25]} 10. Nxd4 {[%clk 0:02:49]}  Nf6 {[%clk 0:02:23]} 11. Nc3 {[%clk 0:02:45]}  Qd7 {[%clk 0:02:22]} 12. Bf4 {[%clk 0:02:42]}  Nxc4 {[%clk 0:02:20]} 13. Ndb5 {[%clk 0:02:28]}  e5 {[%clk 0:02:12]} 14. Qe2 {[%clk 0:02:25]}  Qc6 {[%clk 0:01:44]} 15. Bxe5 {[%clk 0:02:09]}  Nxe5 {[%clk 0:01:25]} 16. Qxe5+ {[%clk 0:02:07]}  Kd7 {[%clk 0:01:25]} 17. Rfd1+ {[%clk 0:02:05]}  Kc8 {[%clk 0:01:25]} 18. Rac1 {[%clk 0:02:03]}  Bc5 {[%clk 0:01:24]} 19. Nd6+ {[%clk 0:02:00]}  Kc7 {[%clk 0:00:49]} 20. Nde4+ {[%clk 0:01:51]}  Kb6 {[%clk 0:00:45]} 21. Nxc5 {[%clk 0:01:51]}  Rhe8 {[%clk 0:00:45]} 22. N5a4+ {[%clk 0:01:49]}  Ka6 {[%clk 0:00:35]} 23. Qc5 {[%clk 0:01:41]} 1-0

[Event "December 12 Late 2023"]
[Site "https://www.chess.com"]
[Date "2023.12.12"]
[Round "10"]
[White "Filgueira, Hernan"]
[Black "Tikhonov, Viacheslav"]
[Result "0-1"]
[Board "47"]
[TimeControl "180+1"]
[WhiteFideId "101770"]
[BlackFideId "44196407"]
[WhiteElo "2579"]
[BlackElo "2523"]
[WhiteTeam "ARG"]
[BlackTeam "RUS"]
[WhiteClock "0:01:06"]
[BlackClock "0:00:13"]

1. d4 {[%clk 0:02:44]}  Nf6 {[%clk 0:02:59]} 2. c4 {[%clk 0:02:44]}  g6 {[%clk 0:03:00]} 3. Nc3 {[%clk 0:02:45]}  d5 {[%clk 0:03:00]} 4. Nf3 {[%clk 0:02:44]}  Bg7 {[%clk 0:03:00]} 5. Bg5 {[%clk 0:02:44]}  Ne4 {[%clk 0:03:00]} 6. Bh4 {[%clk 0:02:44]}  Nxc3 {[%clk 0:03:00]} 7. bxc3 {[%clk 0:02:45]}  c6 {[%clk 0:03:01]} 8. e3 {[%clk 0:02:43]}  O-O {[%clk 0:03:00]} 9. cxd5 {[%clk 0:02:42]}  cxd5 {[%clk 0:03:01]} 10. c4 {[%clk 0:02:42]}  Nc6 {[%clk 0:02:59]} 11. Qd2 {[%clk 0:02:41]}  Bg4 {[%clk 0:02:41]} 12. Rb1 {[%clk 0:02:37]}  b6 {[%clk 0:02:31]} 13. Be2 {[%clk 0:02:32]}  dxc4 {[%clk 0:02:25]} 14. Bxc4 {[%clk 0:02:31]}  Bxf3 {[%clk 0:02:13]} 15. gxf3 {[%clk 0:02:30]}  Na5 {[%clk 0:02:14]} 16. Be2 {[%clk 0:02:26]}  Qd7 {[%clk 0:02:01]} 17. Bg3 {[%clk 0:02:15]}  Rac8 {[%clk 0:01:58]} 18. O-O {[%clk 0:02:14]}  Nc4 {[%clk 0:01:42]} 19. Qb4 {[%clk 0:02:10]}  Qd5 {[%clk 0:01:04]} 20. Rfc1 {[%clk 0:02:03]}  Nd6 {[%clk 0:00:59]} 21. Bxd6 {[%clk 0:01:53]}  exd6 {[%clk 0:00:55]} 22. Qb3 {[%clk 0:01:49]}  Qg5+ {[%clk 0:00:48]} 23. Kh1 {[%clk 0:01:47]}  Rxc1+ {[%clk 0:00:23]} 24. Rxc1 {[%clk 0:01:47]}  Bxd4 {[%clk 0:00:24]} 25. f4 {[%clk 0:01:36]}  Qe7 {[%clk 0:00:24]} 26. f5 {[%clk 0:01:21]}  Qe4+ {[%clk 0:00:21]} 27. Kg1 {[%clk 0:01:21]}  Be5 {[%clk 0:00:16]} 28. f4 {[%clk 0:01:14]}  Bxf4 {[%clk 0:00:14]} 29. fxg6 {[%clk 0:01:06]}  Bxe3+ {[%clk 0:00:13]} 0-1

[Event "December 12 Late 2023"]
[Site "https://www.chess.com"]
[Date "2023.12.12"]
[Round "10"]
[White "Dubessay, Bastien"]
[Black "Khater, Sherif"]
[Result "1-0"]
[Board "50"]
[TimeControl "180+1"]
[WhiteFideId "650048"]
[BlackFideId "2034280"]
[WhiteElo "2451"]
[BlackElo "2565"]
[WhiteTeam "FRA"]
[BlackTeam "USA"]
[WhiteClock "0:00:17"]
[BlackClock "0:01:20"]

1. e4 {[%clk 0:03:00]}  a6 {[%clk 0:03:00]} 2. d4 {[%clk 0:03:00]}  c6 {[%clk 0:03:00]} 3. c4 {[%clk 0:02:46]}  d5 {[%clk 0:02:59]} 4. Nc3 {[%clk 0:02:45]}  dxe4 {[%clk 0:02:55]} 5. Nxe4 {[%clk 0:02:44]}  Nf6 {[%clk 0:02:54]} 6. Nxf6+ {[%clk 0:02:44]}  exf6 {[%clk 0:02:54]} 7. Nf3 {[%clk 0:02:29]}  Bb4+ {[%clk 0:02:52]} 8. Bd2 {[%clk 0:02:26]}  Qe7+ {[%clk 0:02:50]} 9. Be2 {[%clk 0:02:26]}  O-O {[%clk 0:02:49]} 10. O-O {[%clk 0:02:26]}  Bxd2 {[%clk 0:02:48]} 11. Qxd2 {[%clk 0:02:27]}  Re8 {[%clk 0:02:48]} 12. Rfe1 {[%clk 0:02:27]}  Qd8 {[%clk 0:02:47]} 13. Rad1 {[%clk 0:02:17]}  Nd7 {[%clk 0:02:46]} 14. Bd3 {[%clk 0:02:16]}  Nf8 {[%clk 0:02:46]} 15. h3 {[%clk 0:02:16]}  Be6 {[%clk 0:02:45]} 16. Qc3 {[%clk 0:01:58]}  Qd7 {[%clk 0:02:44]} 17. d5 {[%clk 0:01:32]}  cxd5 {[%clk 0:02:43]} 18. cxd5 {[%clk 0:01:33]}  Bf5 {[%clk 0:02:38]} 19. Bxf5 {[%clk 0:01:26]}  Qxf5 {[%clk 0:02:39]} 20. d6 {[%clk 0:01:26]}  Qd7 {[%clk 0:02:33]} 21. Rxe8 {[%clk 0:01:23]}  Rxe8 {[%clk 0:02:33]} 22. Qb4 {[%clk 0:01:13]}  Rc8 {[%clk 0:02:29]} 23. Rd2 {[%clk 0:01:05]}  Ne6 {[%clk 0:02:28]} 24. g3 {[%clk 0:01:02]}  h6 {[%clk 0:02:27]} 25. Kg2 {[%clk 0:01:02]}  Rc5 {[%clk 0:02:23]} 26. h4 {[%clk 0:01:01]}  h5 {[%clk 0:02:20]} 27. Qe4 {[%clk 0:00:50]}  Rc8 {[%clk 0:02:16]} 28. Nh2 {[%clk 0:00:43]}  Rc6 {[%clk 0:02:14]} 29. Qd5 {[%clk 0:00:39]}  g6 {[%clk 0:02:10]} 30. Nf1 {[%clk 0:00:40]}  Kg7 {[%clk 0:02:10]} 31. Ne3 {[%clk 0:00:40]}  Rc5 {[%clk 0:02:09]} 32. Qd3 {[%clk 0:00:40]}  Qc6+ {[%clk 0:02:06]} 33. f3 {[%clk 0:00:35]}  Qd7 {[%clk 0:01:58]} 34. b3 {[%clk 0:00:35]}  b5 {[%clk 0:01:53]} 35. Qe2 {[%clk 0:00:31]}  Re5 {[%clk 0:01:50]} 36. Qd3 {[%clk 0:00:30]}  Nc5 {[%clk 0:01:48]} 37. Qd4 {[%clk 0:00:29]}  Ne6 {[%clk 0:01:47]} 38. Qd3 {[%clk 0:00:29]}  a5 {[%clk 0:01:46]} 39. Nd1 {[%clk 0:00:25]}  b4 {[%clk 0:01:42]} 40. Nf2 {[%clk 0:00:25]}  Rc5 {[%clk 0:01:41]} 41. Ne4 {[%clk 0:00:25]}  Rc1 {[%clk 0:01:38]} 42. Rd1 {[%clk 0:00:25]}  Rc6 {[%clk 0:01:35]} 43. Qd2 {[%clk 0:00:22]}  Qc8 {[%clk 0:01:32]} 44. Qd5 {[%clk 0:00:19]}  Rc2+ {[%clk 0:01:32]} 45. Rd2 {[%clk 0:00:20]}  Rxd2+ {[%clk 0:01:32]} 46. Qxd2 {[%clk 0:00:20]}  Qd7 {[%clk 0:01:32]} 47. Qb2 {[%clk 0:00:20]}  Qd8 {[%clk 0:01:32]} 48. Kf2 {[%clk 0:00:20]}  Nf8 {[%clk 0:01:28]} 49. g4 {[%clk 0:00:19]}  hxg4 {[%clk 0:01:28]} 50. fxg4 {[%clk 0:00:20]}  Nd7 {[%clk 0:01:28]} 51. g5 {[%clk 0:00:21]}  Ne5 {[%clk 0:01:28]} 52. gxf6+ {[%clk 0:00:20]}  Kh7 {[%clk 0:01:28]} 53. Qxe5 {[%clk 0:00:20]}  Qc8 {[%clk 0:01:27]} 54. Ng5+ {[%clk 0:00:20]}  Kg8 {[%clk 0:01:25]} 55. d7 {[%clk 0:00:17]}  Qxd7 {[%clk 0:01:20]} 56. Qb8+ {[%clk 0:00:17]} 1-0

[Event "December 12 Late 2023"]
[Site "https://www.chess.com"]
[Date "2023.12.12"]
[Round "10"]
[White "Tokhirjonova, Gulrukhbegim"]
[Black "Novikova, Galina"]
[Result "1-0"]
[Board "52"]
[TimeControl "180+1"]
[WhiteFideId "14203626"]
[BlackFideId "4157095"]
[WhiteElo "2626"]
[BlackElo "2489"]
[WhiteTeam "USA"]
[BlackTeam "RUS"]
[WhiteClock "0:01:20"]
[BlackClock "0:00:00"]

1. d4 {[%clk 0:02:56]}  Nf6 {[%clk 0:02:56]} 2. Bf4 {[%clk 0:02:55]}  g6 {[%clk 0:02:55]} 3. Nc3 {[%clk 0:02:56]}  Bg7 {[%clk 0:02:56]} 4. e4 {[%clk 0:02:56]}  d6 {[%clk 0:02:56]} 5. Qd2 {[%clk 0:02:57]}  c6 {[%clk 0:02:49]} 6. h3 {[%clk 0:02:55]}  b5 {[%clk 0:02:47]} 7. a3 {[%clk 0:02:55]}  a5 {[%clk 0:02:46]} 8. Bd3 {[%clk 0:02:55]}  Ba6 {[%clk 0:02:44]} 9. Nf3 {[%clk 0:02:53]}  Nbd7 {[%clk 0:02:36]} 10. O-O {[%clk 0:02:52]}  O-O {[%clk 0:02:35]} 11. Rfe1 {[%clk 0:02:52]}  Nh5 {[%clk 0:02:24]} 12. Bh2 {[%clk 0:02:51]}  e5 {[%clk 0:02:23]} 13. Bf1 {[%clk 0:02:41]}  Qe7 {[%clk 0:02:15]} 14. Rad1 {[%clk 0:02:34]}  Rad8 {[%clk 0:02:12]} 15. Ne2 {[%clk 0:02:26]}  f5 {[%clk 0:01:56]} 16. exf5 {[%clk 0:02:23]}  gxf5 {[%clk 0:01:53]} 17. dxe5 {[%clk 0:02:16]}  dxe5 {[%clk 0:01:41]} 18. Ned4 {[%clk 0:02:15]}  Qf6 {[%clk 0:01:34]} 19. Nxe5 {[%clk 0:02:14]}  f4 {[%clk 0:01:18]} 20. Nexc6 {[%clk 0:02:03]}  Rde8 {[%clk 0:01:13]} 21. c3 {[%clk 0:01:41]}  f3 {[%clk 0:01:01]} 22. g4 {[%clk 0:01:37]}  Bb7 {[%clk 0:00:43]} 23. Nxa5 {[%clk 0:01:33]}  Bh6 {[%clk 0:00:30]} 24. Qd3 {[%clk 0:01:23]}  Ba8 {[%clk 0:00:00]} 25. Qxb5 {[%clk 0:01:20]} 1-0